Cogmind - Beta 17 @@@ ROGUE MODE // 2026.06.26 @ 21:08:23 Player: star Result: Destroyed by B-86 Titan with Hardcell Cannon Performance ------------- Evolutions (5) 2500 Regions Visited (14) 2800 Robots Destroyed (140) 700 Value Destroyed (5008) 5008 Prototype IDs (31) 620 Alien Tech Used (0) 0 Bonus (2607) 2607 TOTAL SCORE: 14235 Bonus ------- Follower Combat Kills 95 Met Data Miner 300 Met Warlord at Base 500 MAIN.C Attacked Warlord 500 Warlord Defense Kills 1554 Friendly Fire -342 Cogmind --------- Core Integrity 0/1000 Matter 267/300 Energy 88/100 System Corruption 4% Temperature Cool (0) Movement Core (50) Location -5/Warlord Parts ------- > --- POWER (1) -------- (None) > --- PROPULSION (4) --- (None) > --- UTILITY (8) ------ (None) > --- WEAPON (4) ------- (None) > --- INVENTORY (5) ---- Micro Antimatter Reactor Vortex Chain Reactor Target Analyzer Graphene Brace Peak State ------------ > --- POWER ------------ Neutrino Core > --- PROPULSION ------- Improved Treads Improved Treads Medium Treads Enhanced Biometal Leg > --- UTILITY ---------- Advanced Power Amplifier Advanced Heat Sink Large Storage Unit Active Sensor Suite Improved Medium Armor Plating Advanced Remote Shield > --- WEAPON ----------- Neutron Cannon Neutron Cannon Vortex Catalyst Activator > --- INVENTORY -------- Neutrino Core Vortex Chain Reactor Energy Well Target Analyzer Hardened Heavy Armor Plating Graphene Brace Improved Hardlight Generator Force Field Drone Bay Long-range Proton Cannon Neutron Cannon Proton Missile Launcher Makeshift Spear [Rating: 116] Favorites ----------- Power Neutrino Core Engine Angular Momentum Engine Power Core Neutrino Core Reactor Micro Antimatter Reactor Propulsion Titanium Leg Treads Improved Medium Treads Leg Titanium Leg Wheel Compact Wheel Utility Large Storage Unit Device Active Sensor Suite Storage Large Storage Unit Processor Improved Salvage Targeting Computer Protection Improved Medium Armor Plating Weapon Neutron Cannon Energy Gun Precision Beam Rifle Energy Cannon Neutron Cannon Ballistic Gun KE Penetrator Launcher Heavy Rocket Launcher Impact Weapon Great Maul Slashing Weapon Makeshift Sword Piercing Weapon Makeshift Spear Build | -11 -10 -10 -9 -8 -7 -6 -6 -6 -6 -5 -5 -5 -5 -5 ------- Run | Yrd Mat Min Mat Mat Fac Fac Low Low Dat Pro Fac Upp Upp War Slots Evolved 10 | . . . 2 2 2 2 . . . . 2 . . . Power . | . . . . . . . . . . . . . . . Propulsion 2 | . . . 2 . . . . . . . . . . . Utility 6 | . . . . . 2 2 . . . . 2 . . . Weapon 2 | . . . . 2 . . . . . . . . . . Parts Attached 128 | 12 5 7 13 12 16 6 14 8 . 2 20 2 2 9 Power 15 | 2 . 1 2 1 2 1 1 1 . . 3 . . 1 Engine 9 | 2 . 1 2 1 1 1 . 1 . . . . . . Core 5 | . . . . . 1 . 1 . . . 3 . . . Reactor 1 | . . . . . . . . . . . . . . 1 Propulsion 34 | 4 2 2 5 6 2 . 2 . . . 10 . . 1 Treads 6 | . . . . . . . 2 . . . 4 . . . Leg 21 | 2 2 2 5 6 2 . . . . . 1 . . 1 Wheel 7 | 2 . . . . . . . . . . 5 . . . Hover . | . . . . . . . . . . . . . . . Flight . | . . . . . . . . . . . . . . . Utility 35 | 3 2 2 1 . 5 4 5 1 . 1 4 2 1 4 Device 23 | 2 2 1 1 . 3 2 3 1 . . 3 2 1 2 Storage 2 | 1 . 1 . . . . . . . . . . . . Processor 2 | . . . . . . . . . . . . . . 2 Hackware . | . . . . . . . . . . . . . . . Protection 8 | . . . . . 2 2 2 . . 1 1 . . . Artifact . | . . . . . . . . . . . . . . . Weapon 44 | 3 1 2 5 5 7 1 6 6 . 1 3 . 1 3 Energy Gun 16 | 1 1 1 3 2 4 1 2 . . 1 . . . . Energy Cannon 12 | . . . 2 1 2 . 1 2 . . 2 . . 2 Ballistic Gun 8 | 2 . 1 . . . . 3 1 . . 1 . . . Ballistic Cannon . | . . . . . . . . . . . . . . . Launcher 2 | . . . . . 1 . . . . . . . . 1 Special Weapon . | . . . . . . . . . . . . . . . Impact Weapon 2 | . . . . 2 . . . . . . . . . . Slashing Weapon 3 | . . . . . . . . 2 . . . . 1 . Piercing Weapon 1 | . . . . . . . . 1 . . . . . . Special Melee Weapon . | . . . . . . . . . . . . . . . Unidentified Prototypes 11 | . . . 1 1 2 2 1 . . . . . . 4 Corrupted Parts 2 | . . . 1 . . . . . . . . . 1 . System Corruption 13 | . . . 3 . . . . . . . . . 10 . Parts Lost 64 | 3 5 . 7 3 4 4 14 2 . 5 6 2 . 9 Power 5 | 1 1 . 1 . . . 2 . . . . . . . Propulsion 19 | 2 1 . 2 1 2 1 3 . . 1 2 1 . 3 Utility 16 | . 1 . 2 . 1 3 2 . . 1 2 1 . 3 Weapon 24 | . 2 . 2 2 1 . 7 2 . 3 2 . . 3 Highest Loss Streak 11 | 2 3 . 3 1 2 2 11 1 . 5 2 1 . 5 To Critical Strikes . | . . . . . . . . . . . . . . . Average Backups 11 | 3 6 8 12 14 13 14 11 10 14 13 10 13 14 12 Power . | . 1 1 1 1 . . . . . . 1 1 1 1 Propulsion . | 1 . 2 1 2 1 . . . . . . 3 3 . Utility 6 | . 3 3 2 4 5 10 8 8 10 9 7 6 6 6 Weapon 2 | . 1 . 6 7 5 3 2 1 4 3 1 3 4 3 Tool/Special . | . . . . . . . . . . . . . . . Unused Backups 26 | . . 1 4 2 5 2 6 . . 1 . . . 5 Power 4 | . . . 1 1 . . . . . . . . . 2 Propulsion . | . . . . . . . . . . . . . . . Utility 11 | . . 1 . . . 2 5 . . 1 . . . 2 Weapon 11 | . . . 3 1 5 . 1 . . . . . . 1 Tool/Special . | . . . . . . . . . . . . . . . Average Slot Usage (%) 75 | . 90 97 95 95 95 77 59 69 66 65 71 80 82 81 Engine 2 | . 10 12 10 9 6 . . 2 6 6 1 . . . Core 3 | . . . . . . 6 5 3 . . 3 5 5 4 Treads 6 | . . . . . . . 2 13 13 12 7 11 11 12 Leg 10 | . 27 28 42 35 28 20 10 . . . 1 . . 3 Wheel 1 | . . . . . . . . . . . 7 7 5 1 Device 14 | . 12 14 9 9 14 11 7 13 13 13 22 18 23 21 Storage 6 | . 14 14 11 9 7 6 4 6 6 6 5 5 5 4 Protection 4 | . . . . . 4 4 5 5 6 5 2 5 5 4 Energy Gun 7 | . 7 14 12 23 11 15 15 . . . . . . . Energy Cannon 5 | . . . 3 . 10 4 1 9 6 5 . 11 11 10 Ballistic Gun 3 | . 17 13 5 . . . . 6 6 6 6 5 5 4 Impact Weapon 2 | . . . . 8 6 6 4 . . . . . . . Slashing Weapon 2 | . . . . . . . . 2 6 6 7 5 5 4 Peak Build Rating 116 | 9 9 11 17 30 49 71 72 79 79 79 90 91 92 116 Average Rating 61 | 6 7 9 14 21 39 67 66 75 79 76 80 86 91 101 On Entrance 49 | . 9 6 10 14 30 46 71 71 79 79 62 89 91 92 Avg Prop Armor Cover (%) 3 | . . . . . . 3 . . . . 6 4 1 2 Naked Turns 23 | . . . . . . . . . . . . . . 23 Heaviest Build 97 | 14 15 28 34 43 55 63 66 77 70 70 76 84 84 97 Greatest Support 74 | 32 20 20 43 68 68 63 60 60 60 60 58 51 51 74 Greatest Overweight (x) 4 | 2 . 1 1 1 1 1 4 1 1 1 4 2 1 2 Average Overweight (x) . | . . . . . . . 1 . 1 1 1 1 1 1 Largest Inventory Capacity 15 | 8 8 15 15 15 15 15 15 15 15 15 15 15 15 15 Average Capacity 13 | 7 8 14 15 15 15 15 13 15 15 15 15 15 15 14 Most Carried 15 | 5 7 11 15 15 15 15 15 15 15 15 15 15 15 15 Average Carried 12 | 3 6 8 12 14 13 14 11 11 15 14 11 14 15 14 Final Capacity 15 | 8 8 15 15 15 15 15 15 15 15 15 15 15 15 5 Final Carried 15 | 5 6 9 15 14 15 13 10 15 15 13 14 15 15 5 Class Distribution -------------------- 37% | Scavenger-Assassin 21% | Assassin 17% | Mutant 5% | Gunner 4% | Derelict-Assassin Dominant Class ---------------- Mutant | -10/Materials Derelict-Mutant | -10/Mines Scavenger-Mutant | -9/Materials Scavenger-Skirmisher | -8/Materials Gunner | -7/Factory Assassin | -6/Factory Assassin | -6/Lower Caves Derelict-Assassin | -6/Lower Caves Scavenger-Assassin | -6/Data Miner Scavenger-Assassin | -5/Proximity Caves Scavenger-Assassin | -5/Factory Scavenger-Assassin | -5/Upper Caves Scavenger-Assassin | -5/Upper Caves Scavenger-Assassin | -5/Warlord Resources | -11 -10 -10 -9 -8 -7 -6 -6 -6 -6 -5 -5 -5 -5 -5 ----------- Run | Yrd Mat Min Mat Mat Fac Fac Low Low Dat Pro Fac Upp Upp War Matter Collected 2875 | 374 121 111 340 60 218 168 365 298 . 62 224 133 97 304 Remotely . | . . . . . . . . . . . . . . . Salvage Created 6247 | 73 287 94 1103 577 825 384 368 732 . 407 824 149 44 380 Parts 263 | . 8 14 70 31 36 11 12 16 . 11 35 7 . 12 Haulers Intercepted 12 | . 1 . 5 1 3 . 1 . . . 1 . . . Recyclers Shooed . | . . . . . . . . . . . . . . . Parts Field Recycled . | . . . . . . . . . . . . . . . Retrieved Matter . | . . . . . . . . . . . . . . . Parts Self-Destructed 49 | . . . . . . . 7 12 . 11 . 16 3 . Prevented 9 | . . . . . . . 2 5 . . . . 2 . Parts Restored . | . . . . . . . . . . . . . . . Kills | -11 -10 -10 -9 -8 -7 -6 -6 -6 -6 -5 -5 -5 -5 -5 ------- Run | Yrd Mat Min Mat Mat Fac Fac Low Low Dat Pro Fac Upp Upp War Combat Hostiles Destroyed 114 | 6 5 5 22 17 12 6 7 10 . 5 5 2 1 11 Melee 8 | . . . . . 1 1 . . . 1 5 . . . Guns 59 | 6 5 5 18 16 1 2 3 . . 3 . . . . Cannons 18 | . . . 4 . 2 1 . 3 . 1 . 2 1 4 AOE 25 | . . . . 1 7 . 4 7 . . . . . 6 Classes Destroyed 20 | 1 2 3 5 . 5 . 1 2 . . . . . 1 Worker 4 | . . 1 . . 1 . . . . . 2 . . . Builder 3 | . . . 1 . 1 1 . . . . . . . . Tunneler 2 | . . 1 . . . . . . . . 1 . . . Hauler 12 | . 1 . 5 1 3 . 1 . . . 1 . . . Recycler 5 | . . . 1 . 1 . . . . . 3 . . . Minesweeper 1 | . . . . . . . . 1 . . . . . . Mechanic 1 | . . . . . 1 . . . . . . . . . Operator 2 | . . . 1 . 1 . . . . . . . . . Watcher 1 | . . . . . 1 . . . . . . . . . Swarmer 25 | . . 5 7 11 . . . 2 . . . . . . Grunt 52 | . 5 . 9 5 7 3 5 6 . 5 . 1 . 6 Brawler 2 | . . . 1 . 1 . . . . . . . . . Duelist 2 | . . . . . . . . 1 . . . . 1 . Sentry 10 | . . . 5 1 . 1 1 1 . . 1 . . . Hunter 4 | . . . . . 1 1 . . . . 1 1 . . Programmer 9 | . . . . . 2 1 . . . . 3 . . 3 Heavy 1 | . . . . . 1 . . . . . . . . . Behemoth 1 | . . . . . . . 1 . . . . . . . Executioner 2 | . . . . . . . . . . . . . . 2 Assembled 6 | 6 . . . . . . . . . . . . . . Savage 1 | . . . . . . . . 1 . . . . . . Best Kill Streak 9 | 2 1 4 9 5 5 2 5 7 . 5 4 1 1 4 Combat Bots Only 7 | 2 1 3 6 4 4 2 5 7 . 5 2 1 1 4 Max Kills in Single Turn 5 | 1 1 2 2 2 5 1 2 2 . 1 1 1 1 3 Gunslinging 1 | . . . . 1 . . . . . . . . . . Exploded 3 | . . . . 1 3 . 2 2 . . . . . 3 Melee 1 | . . . . . 1 1 . . . 1 1 . . . Uniques/NPCs Destroyed . | . . . . . . . . . . . . . . . Combat | -11 -10 -10 -9 -8 -7 -6 -6 -6 -6 -5 -5 -5 -5 -5 -------- Run | Yrd Mat Min Mat Mat Fac Fac Low Low Dat Pro Fac Upp Upp War Hostile Shots Fired 749 | 23 44 17 79 51 47 60 125 26 . 43 63 31 . 140 Missed 197 | 1 11 2 25 13 13 17 42 10 . 7 11 5 . 40 Hits 552 | 22 33 15 54 38 34 43 83 16 . 36 52 26 . 100 Melee 7 | 3 . . . . 2 . . 2 . . . . . . Projectile 545 | 19 33 15 54 38 32 43 83 14 . 36 52 26 . 100 AOE 7 | . . . . . . . . . . . . . . 7 Critical Strikes 18 | 1 1 . 2 1 3 1 2 3 . . . . . 4 Actively Blocked 2 | . . . . . 2 . . . . . . . . . Part Disruptions 1 | 1 . . . . . . . . . . . . . . Damage Taken 10385 | 345 470 115 683 435 1256 661 1470 337 . 720 701 410 . 2782 Core 1718 | 33 68 38 91 30 60 48 223 19 . 98 28 45 . 937 Absorbed by Shields 603 | . . . . . . . . . . . 314 63 . 226 Redirected to Shielding 37 | . . . . . 37 . . . . . . . . . Ignored by Resistances 6 | . . . . . 6 . . . . . . . . . Regen/Repaired (Parts) 180 | . . . . . . . . . . . . . . 180 Core Remaining (%) 74 | 86 . 44 77 94 91 . . . . 54 . . . . Volleys Fired 312 | 25 40 10 58 28 30 14 37 15 . 9 . 14 6 26 Largest 3 | 2 2 2 2 3 3 3 3 3 . 3 . 3 3 3 Hottest 216 | 70 100 70 136 135 216 202 206 183 . 198 . 213 213 213 Shots Fired 696 | 50 67 20 106 81 84 43 66 28 . 22 . 40 20 69 Gun 486 | 50 67 20 87 81 23 32 57 8 . 14 . 15 7 25 Cannon 187 | . . . 19 . 58 11 . 13 . 8 . 25 13 40 Launcher 23 | . . . . . 3 . 9 7 . . . . . 4 Special . | . . . . . . . . . . . . . . . Kinetic 206 | 37 34 10 33 . . . 24 8 . 13 . 15 7 25 Thermal 306 | 13 33 2 33 . 67 43 28 5 . 9 . 25 13 35 Explosive 19 | . . . . . 3 . 9 7 . . . . . . Electromagnetic 161 | . . 8 40 81 14 . 5 8 . . . . . 5 Entropic 4 | . . . . . . . . . . . . . . 4 Robot Hit Streak 22 | 4 16 4 11 10 9 19 22 17 . 7 . 4 1 10 Robot Miss Streak 11 | 4 3 11 7 10 2 1 1 1 . 1 . 5 2 5 Penetration Max . | . . . . . . . . . . . . . . . Secondary Targets 7 | . . . 2 4 . 1 . . . . . . . . Max Gunslinging Chain 1 | . . . 1 1 . 1 . . . . . . . . Shots Hit Robots 514 | 22 51 9 76 52 65 35 50 26 . 25 42 15 3 43 Core Hits 274 | 14 15 7 51 35 32 12 21 37 . 15 17 6 1 11 Critical Kills 1 | . . . . . 1 . . . . . . . . . Critical Parts Destroyed 5 | . . . . . 3 . 2 . . . . . . . Critical Strikes 25 | 2 . . 3 . 5 3 2 2 . . 8 . . . Burn 9 | 2 . . 3 . 1 3 . . . . . . . . Meltdown 1 | . . . . . 1 . . . . . . . . . Destroy 2 | . . . . . . . 2 . . . . . . . Corrupt 1 | . . . . . . . . 1 . . . . . . Smash 3 | . . . . . 3 . . . . . . . . . Sever 8 | . . . . . . . . . . . 8 . . . Impale 1 | . . . . . . . . 1 . . . . . . Melee Attacks 104 | . . . . 2 14 9 1 14 . 9 53 1 . 1 Impact 26 | . . . . 2 14 9 1 . . . . . . . Slashing 74 | . . . . . . . . 10 . 9 53 1 . 1 Piercing 4 | . . . . . . . . 4 . . . . . . Sneak Attacks 12 | . . . . . . . 1 2 . . 9 . . . Combat Hostiles . | . . . . . . . . . . . . . . . Follow-up Attacks 2 | . . . . . . . . 1 . . 1 . . . Damage Inflicted 15721 | 219 557 162 1471 728 2678 846 1941 1963 . 647 1736 476 112 2185 Guns 5204 | 219 557 162 1196 681 300 434 865 129 . 247 . 136 . 278 Cannons 3337 | . . . 223 . 980 166 . 253 . 195 . 340 112 1068 Explosions 4208 | . . . 52 47 1165 . 988 1154 . . . . . 802 Melee 2972 | . . . . . 233 246 88 427 . 205 1736 . . 37 Ramming . | . . . . . . . . . . . . . . . Kinetic 2339 | 156 272 140 636 . . . 345 129 . 247 . 136 . 278 Thermal 4747 | 63 285 12 417 47 1134 600 492 62 . 195 . 340 112 988 Explosive 3236 | . . . . . 1165 . 917 1154 . . . . . . Electromagnetic 1694 | . . 10 418 681 146 . 99 191 . . . . . 149 Impact 567 | . . . . . 233 246 88 . . . . . . . Slashing 2260 | . . . . . . . . 282 . 205 1736 . . 37 Piercing 145 | . . . . . . . . 145 . . . . . . Entropic 733 | . . . . . . . . . . . . . . 733 Highest Corruption 15 | . . . 3 . 9 3 . . . . 5 5 15 15 Average Corruption 5 | . . . 3 . 7 2 . . . . 3 5 6 6 Corruption Purged 3 | . . . . . . 3 . . . . . . . . Corruption Blocked . | . . . . . . . . . . . . . . . Effects 106 | . . . 1 . 12 6 . . . . 15 25 32 15 Message Errors 34 | . . . . . 5 1 . . . . 4 8 10 6 Matter Fused 26 | . . . . . 3 1 . . . . 7 5 9 1 Heat Flow Errors 7 | . . . . . 1 2 . . . . 1 1 1 1 Energy Discharges 13 | . . . 1 . 1 . . . . . 1 3 3 4 Parts Fused 1 | . . . . . . . . . . . . . 1 . Data Loss (minor) 12 | . . . . . . 1 . . . . 1 4 3 3 Data Loss (major) 5 | . . . . . . . . . . . 1 2 2 . Misfires 6 | . . . . . 1 1 . . . . . 2 2 . Alerts 1 | . . . . . . . . . . . . . 1 . Weapon Failures 1 | . . . . . 1 . . . . . . . . . Overload Shots . | . . . . . . . . . . . . . . . Overflow Damage 810 | . . . 14 . 227 3 70 168 . . 135 11 . 182 Projectiles 121 | . . . 1 . 8 . . 10 . . . 11 . 91 Explosions 149 | . . . 13 . 43 . 2 . . . . . . 91 Melee 540 | . . . . . 176 3 68 158 . . 135 . . . Knockbacks 4 | . . . . . 3 1 . . . . . . . . Impact 4 | . . . . . 3 1 . . . . . . . . Kinetic . | . . . . . . . . . . . . . . . Secondary . | . . . . . . . . . . . . . . . Self-Inflicted Damage 968 | . . . 34 32 564 . 48 47 . . . . . 243 Shots 15 | . . . 1 1 9 . 1 1 . . . . . 2 Rammed 1 | . . . . . . . . 1 . . . . . . Targets Rammed 1 | . . . . . . . . 1 . . . . . . Kicked . | . . . . . . . . . . . . . . . Crushed . | . . . . . . . . . . . . . . . Highest Temperature 485 | 100 213 18 151 326 261 325 435 258 . 186 216 219 331 485 Average Temperature 98 | 41 89 5 34 109 109 132 144 94 . 88 119 93 162 146 Received Heat Transfer 2557 | 120 291 . 156 126 126 198 537 171 . 306 4 71 . 451 Effects 12 | . 2 . . . . . 5 3 . . . . . 2 Shutdowns 2 | . . . . . . . 1 . . . . . . 1 Energy Bleed 2 | . . . . . . . 2 . . . . . . . Interference 5 | . 2 . . . . . . 3 . . . . . . Matter Decay 1 | . . . . . . . . . . . . . . 1 Short Circuit 1 | . . . . . . . 1 . . . . . . . Damage (minor) 1 | . . . . . . . 1 . . . . . . . Siege Activations . | . . . . . . . . . . . . . . . Martial Activations . | . . . . . . . . . . . . . . . Shielding Activations . | . . . . . . . . . . . . . . . Robots Disrupted 1 | . . . . . 1 . . . . . . . . . Combat Hostiles 1 | . . . . . 1 . . . . . . . . . Robots Corrupted 2 | . . . . . 1 . . . . . . . . 1 Combat Hostiles 1 | . . . . . . . . . . . . . . 1 Parts Fried 10 | . . . 2 3 2 . 1 . . . . . 1 1 Impact Corruptions 9 | . . . . . 7 1 1 . . . . . . . Robots Melted 4 | . . . . . 2 2 . . . . . . . . Combat Hostiles 3 | . . . . . 1 2 . . . . . . . . Parts Melted 17 | . 3 . 1 . 5 5 . 1 . 1 . 1 . . Heat Transferred 6863 | 333 851 37 1049 . 1906 1410 827 100 . 300 . . . 50 Parts Sabotaged . | . . . . . . . . . . . . . . . Parts Stolen 1 | . . . . . . . . 1 . . . . . . Parts Stripped . | . . . . . . . . . . . . . . . Power Chain Reactions 6 | . . . 2 1 1 . 1 . . . . . . 1 Alert | -11 -10 -10 -9 -8 -7 -6 -6 -6 -6 -5 -5 -5 -5 -5 ------- Run | Yrd Mat Min Mat Mat Fac Fac Low Low Dat Pro Fac Upp Upp War Maximum Alert Level 1 | . . . 1 1 1 . . . . . . . . . Low Security (%) 88 | 100 100 100 55 46 81 100 . . . . 100 . . . Level 1 11 | . . . 44 53 18 . . . . . . . . . Level 2 . | . . . . . . . . . . . . . . . Level 3 . | . . . . . . . . . . . . . . . Level 4 . | . . . . . . . . . . . . . . . Level 5 . | . . . . . . . . . . . . . . . High Security . | . . . . . . . . . . . . . . . Max Security . | . . . . . . . . . . . . . . . Peak Influence 331 | . 51 95 288 331 253 120 . . . . 108 . . . Initial 121 | . . 7 29 110 121 114 . . . . 25 . . . Average 66 | . 17 16 158 200 138 49 . . . . 30 . . . Influence Increases 3574 | . 158 130 630 473 589 280 170 280 . 143 316 65 30 310 Destroy 0b10 Robot/C 2200 | . 100 100 440 340 240 120 140 220 . 120 100 40 20 220 Destroy 0b10 Robot/NC 180 | . 5 10 40 5 45 5 5 15 . 10 35 5 . . Destroy Leader 414 | . 22 20 110 62 68 40 10 10 . 10 32 20 10 . Allied During Kill 38 | . . . . . . . . 35 . 3 . . . . Disable Machine 180 | . . . . . 180 . . . . . . . . . Destroy Structure 77 | . 1 . 10 6 56 . . . . . 4 . . . Partial Spotted 15 | . . . 15 . . . . . . . . . . . Lose Combat Pursuer 270 | . 30 . 15 60 . 15 15 . . . 45 . . 90 Active Sensor Use 200 | . . . . . . 100 . . . . 100 . . . Influence Decreases 3440 | . 137 74 444 469 621 481 204 280 . 103 313 108 30 176 Entered New Map 527 | . . 14 48 153 146 121 14 . . . 15 16 . . Time Decay 2493 | . 97 60 326 286 435 320 180 260 . 63 258 92 30 86 Lost Part 420 | . 40 . 70 30 40 40 10 20 . 40 40 . . 90 Squads Dispatched 18 | . . . 2 2 6 4 . 1 . . 3 . . . Investigation 4 | . . . . 2 . 1 . . . . 1 . . . Extermination 5 | . . . . . 2 1 . . . . 2 . . . Reinforcement 8 | . . . 2 . 4 2 . . . . . . . . Assault 1 | . . . . . . . . 1 . . . . . . Garrison . | . . . . . . . . . . . . . . . Intercept . | . . . . . . . . . . . . . . . Searches Triggered . | . . . . . . . . . . . . . . . Data Miner Redirects 1 | . . . . . . . . . . . 1 . . . Construction Impeded . | . . . . . . . . . . . . . . . Haulers Reinforced 1 | . . . . . 1 . . . . . . . . . Active Scanning Responses 2 | . . . . . . 1 . . . . 1 . . . Cargo Convoy Interrupts . | . . . . . . . . . . . . . . . Stealth | -11 -10 -10 -9 -8 -7 -6 -6 -6 -6 -5 -5 -5 -5 -5 --------- Run | Yrd Mat Min Mat Mat Fac Fac Low Low Dat Pro Fac Upp Upp War Distress Signals 9 | . . . 3 1 1 1 . . . . 1 . . 2 Communications Jammed . | . . . . . . . . . . . . . . . Distress Signals . | . . . . . . . . . . . . . . . Times Spotted 184 | 9 10 5 41 23 16 16 8 13 . 6 9 2 1 25 Peak Tracking Total 10 | 2 4 3 5 4 4 4 5 7 . 5 2 1 1 10 Tactical Retreats 15 | 1 2 . 1 3 . 1 1 . . . 3 . . 3 Traps | -11 -10 -10 -9 -8 -7 -6 -6 -6 -6 -5 -5 -5 -5 -5 ------- Run | Yrd Mat Min Mat Mat Fac Fac Low Low Dat Pro Fac Upp Upp War Traps Triggered 11 | . . . 1 2 1 4 . . . . 3 . . . Indirectly . | . . . . . . . . . . . . . . . Trap Hack Attempts . | . . . . . . . . . . . . . . . Triggered . | . . . . . . . . . . . . . . . Disarmed . | . . . . . . . . . . . . . . . Reprogrammed . | . . . . . . . . . . . . . . . Reused . | . . . . . . . . . . . . . . . Traps Extracted . | . . . . . . . . . . . . . . . Installed . | . . . . . . . . . . . . . . . Triggered . | . . . . . . . . . . . . . . . Machines | -11 -10 -10 -9 -8 -7 -6 -6 -6 -6 -5 -5 -5 -5 -5 ---------- Run | Yrd Mat Min Mat Mat Fac Fac Low Low Dat Pro Fac Upp Upp War Machines Disabled 15 | . . . . . 12 . . 1 . . . . . 2 Max in Single Turn 5 | . . . . . 5 . . 1 . . . . . 1 Machines Repaired . | . . . . . . . . . . . . . . . Machines Dismantled . | . . . . . . . . . . . . . . . Machines Sabotaged . | . . . . . . . . . . . . . . . Overloaded Fab Kills . | . . . . . . . . . . . . . . . Hacking | -11 -10 -10 -9 -8 -7 -6 -6 -6 -6 -5 -5 -5 -5 -5 --------- Run | Yrd Mat Min Mat Mat Fac Fac Low Low Dat Pro Fac Upp Upp War Machines Accessed 15 | . . . . . . . 1 3 4 1 . 1 1 4 Terminals 2 | . . . . . . . . . . 1 . 1 . . Fabricators . | . . . . . . . . . . . . . . . Repair Stations . | . . . . . . . . . . . . . . . Recycling Units . | . . . . . . . . . . . . . . . Scanalyzers . | . . . . . . . . . . . . . . . Garrison Access . | . . . . . . . . . . . . . . . Total Hacks 52 | . . . . . . . 1 8 32 1 . 1 1 8 Successful 52 | . . . . . . . 1 8 32 1 . 1 1 8 Failed . | . . . . . . . . . . . . . . . Catastrophic . | . . . . . . . . . . . . . . . Database Lockouts . | . . . . . . . . . . . . . . . Manual 2 | . . . . . . . . . . . . . . 2 Terminals 2 | . . . . . . . . . . 1 . 1 . . Fabricators . | . . . . . . . . . . . . . . . Repair Stations . | . . . . . . . . . . . . . . . Recycling Units . | . . . . . . . . . . . . . . . Scanalyzers . | . . . . . . . . . . . . . . . Garrison Access . | . . . . . . . . . . . . . . . Terminal Hacks 52 | . . . . . . . 1 8 32 1 . 1 1 8 Record 20 | . . . . . . . . 6 11 1 . 1 . 1 Part Schematic 12 | . . . . . . . . . 12 . . . . . Robot Schematic 6 | . . . . . . . . . 6 . . . . . Prototype ID Bank 8 | . . . . . . . . . 3 . . . . 5 Open Door 6 | . . . . . . . 1 2 . . . . 1 2 Fabricator Hacks . | . . . . . . . . . . . . . . . Repair Station Hacks . | . . . . . . . . . . . . . . . Recycling Unit Hacks . | . . . . . . . . . . . . . . . Scanalyzer . | . . . . . . . . . . . . . . . Garrison Access Hacks . | . . . . . . . . . . . . . . . Unauthorized Hacks . | . . . . . . . . . . . . . . . Terminals . | . . . . . . . . . . . . . . . Fabricators . | . . . . . . . . . . . . . . . Repair Stations . | . . . . . . . . . . . . . . . Recycling Units . | . . . . . . . . . . . . . . . Scanalyzers . | . . . . . . . . . . . . . . . Garrison Access . | . . . . . . . . . . . . . . . Data Cores Recovered . | . . . . . . . . . . . . . . . Used . | . . . . . . . . . . . . . . . Hacking Detections . | . . . . . . . . . . . . . . . Full Trace Events . | . . . . . . . . . . . . . . . Feedback Events . | . . . . . . . . . . . . . . . Feedback Blocked . | . . . . . . . . . . . . . . . Robot Schematics Acquired 6 | . . . . . . . . . 6 . . . . . Robots Built . | . . . . . . . . . . . . . . . Authchips . | . . . . . . . . . . . . . . . Time . | . . . . . . . . . . . . . . . Total Robot Build Rating . | . . . . . . . . . . . . . . . Part Schematics Acquired 12 | . . . . . . . . . 12 . . . . . Parts Built . | . . . . . . . . . . . . . . . Authchips . | . . . . . . . . . . . . . . . Time . | . . . . . . . . . . . . . . . Total Part Build Rating . | . . . . . . . . . . . . . . . Part Studies Acquired . | . . . . . . . . . . . . . . . Parts Repaired . | . . . . . . . . . . . . . . . Time . | . . . . . . . . . . . . . . . Parts Recycled . | . . . . . . . . . . . . . . . Recycled Matter . | . . . . . . . . . . . . . . . Retrieved Matter . | . . . . . . . . . . . . . . . Retrieved Components . | . . . . . . . . . . . . . . . Parts Scanalyzed . | . . . . . . . . . . . . . . . Part Schematics Acquired . | . . . . . . . . . . . . . . . Parts Damaged . | . . . . . . . . . . . . . . . Bothacking | -11 -10 -10 -9 -8 -7 -6 -6 -6 -6 -5 -5 -5 -5 -5 ------------ Run | Yrd Mat Min Mat Mat Fac Fac Low Low Dat Pro Fac Upp Upp War Used RIF Installer . | . . . . . . . . . . . . . . . Robots Hacked . | . . . . . . . . . . . . . . . Non-combat . | . . . . . . . . . . . . . . . Combat . | . . . . . . . . . . . . . . . Robot Hacks Applied . | . . . . . . . . . . . . . . . Relay Couplers Released . | . . . . . . . . . . . . . . . Fabnet Peak Effective % . | . . . . . . . . . . . . . . . Robots Rewired 2 | . . . . . . . . 2 . . . . . . Allies Hacked . | . . . . . . . . . . . . . . . Hacks Repelled . | . . . . . . . . . . . . . . . Allies | -11 -10 -10 -9 -8 -7 -6 -6 -6 -6 -5 -5 -5 -5 -5 -------- Run | Yrd Mat Min Mat Mat Fac Fac Low Low Dat Pro Fac Upp Upp War Total Allies 4 | . . . . . . . . 4 . . . . . . Largest Group 4 | . . . . . . . . 4 2 2 . . . . Highest-Rated Group 109 | . . . . . . . . 109 58 58 . . . . Highest-Rated Ally 31 | . . . . . . . . 31 29 29 . . . . Total Orders 16 | . . . . . . . 2 4 . 3 1 5 1 . STAY 1 | . . . . . . . . . . 1 . . . . FOLLOW 1 | . . . . . . . . . . 1 . . . . EXPLORE 11 | . . . . . . . 1 3 . 1 . 5 1 . RETURN 3 | . . . . . . . 1 1 . . 1 . . . Ally Attacks 34 | . . . . . . . . 18 . 16 . . . . Total Damage 448 | . . . . . . . . 197 . 251 . . . . Kills 3 | . . . . . . . . 2 . 1 . . . . Allies Corrupted . | . . . . . . . . . . . . . . . Allies Melted 2 | . . . . . . . . 1 . . . . . 1 Intel | -11 -10 -10 -9 -8 -7 -6 -6 -6 -6 -5 -5 -5 -5 -5 ------- Run | Yrd Mat Min Mat Mat Fac Fac Low Low Dat Pro Fac Upp Upp War Active Infowar (turns) 15641 | 520 176 233 287 636 561 950 3335 1772 224 1248 1239 1179 1137 2144 A.S.S. 13228 | . . . . . . 950 3335 1772 224 1248 1239 1179 1137 2144 Terrain 312 | 281 31 . . . . . . . . . . . . . Structural 1260 | . . . 63 636 561 . . . . . . . . . Seismic 841 | 239 145 233 224 . . . . . . . . . . . Robot Analysis Total . | . . . . . . . . . . . . . . . Derelict Logs Recovered 6 | . . . . . . . 2 1 . . . 2 1 . Drone Launches 11 | . . . . . . . 1 3 . 1 . 5 1 . Drone Recoveries 8 | . . . . . . . 1 2 . . 1 4 . . Exploration | -11 -10 -10 -9 -8 -7 -6 -6 -6 -6 -5 -5 -5 -5 -5 ------------- Run | Yrd Mat Min Mat Mat Fac Fac Low Low Dat Pro Fac Upp Upp War Turns Passed 19871 | 2167 307 410 771 636 1159 952 4379 1895 224 1248 1239 1179 1137 2168 Spaces Moved 8283 | 744 137 203 415 366 722 462 1675 622 94 457 520 535 458 873 Core 243 | 19 . . . . . . 179 . . . . . . 45 Treads 3239 | . . . . . . . 245 622 94 457 304 315 458 744 Legs 4069 | 429 137 203 415 366 722 462 1251 . . . . . . 84 Wheels 732 | 296 . . . . . . . . . . 216 220 . . Hover . | . . . . . . . . . . . . . . . Flight . | . . . . . . . . . . . . . . . Fastest Speed 50 | 50 120 120 120 120 120 120 100 160 240 240 115 130 240 50 Average Speed 193 | 110 120 178 121 133 130 181 233 236 240 240 199 194 240 230 Slowest Speed 320 | 150 120 190 190 190 200 200 270 240 240 240 320 240 240 240 Overloaded Moves . | . . . . . . . . . . . . . . . Propulsion Burnouts . | . . . . . . . . . . . . . . . Robots Hopped . | . . . . . . . . . . . . . . . Potential Cave-ins 8 | . . . . . 2 . . . . . . . . 6 Cave-ins Triggered . | . . . . . . . . . . . . . . . Exploration Rate (%) 56 | 59 25 41 46 43 22 14 99 98 71 77 7 94 63 85 Regions Visited 14 Branch Regions 8 Pre-discovered Areas 5 | . . . . . . . 2 2 1 . . . . . Known Exits Taken 8 | . . . . . . 1 1 1 1 1 1 1 1 . Unknown Exits Taken 6 | 1 1 1 1 1 1 . . . . . . . . . Scrap Searched 21 | . . 1 . . . . 5 7 . 2 . 3 3 . Spaces Dug 49 | . . . . 1 7 . 15 20 . . 2 . 4 . Terrain Destroyed 413 | . . . 7 5 58 . 70 93 . 2 2 16 13 147 Melee 10 | . . . . 1 7 . . . . . 2 . . . Projectile 61 | . . . . . 10 . . 2 . 2 . 16 13 18 AOE 342 | . . . 7 4 41 . 70 91 . . . . . 129 Terrain Rammed . | . . . . . . . . . . . . . . . Walls Destroyed . | . . . . . . . . . . . . . . . Machines Disabled . | . . . . . . . . . . . . . . . Actions | -11 -10 -10 -9 -8 -7 -6 -6 -6 -6 -5 -5 -5 -5 -5 --------- Run | Yrd Mat Min Mat Mat Fac Fac Low Low Dat Pro Fac Upp Upp War Total 11361 | 2037 213 228 571 456 845 528 2075 991 93 577 658 638 480 971 Wait 2289 | 1248 28 2 55 32 29 22 311 317 . 94 29 82 13 27 Move 8269 | 743 136 202 414 365 721 461 1674 621 93 456 519 534 457 873 Hop . | . . . . . . . . . . . . . . . Pick Up 90 | 8 2 3 17 7 13 4 16 2 . 2 5 3 . 8 Fast Attach 51 | 8 1 1 4 1 2 3 13 4 . . 9 1 . 4 Attach 45 | 3 2 1 5 4 4 2 6 1 . 4 4 . . 9 Detach 5 | . . . . . . . . 2 . . . . . 3 Swap 83 | 2 4 6 10 7 16 3 4 9 . 1 10 1 3 7 Drop 75 | . . 3 8 10 12 5 13 . . 2 6 2 1 13 Fire 312 | 25 40 10 58 28 30 14 37 15 . 9 . 14 6 26 Melee 102 | . . . . 2 14 9 1 13 . 9 52 1 . 1 Ram . | . . . . . . . . . . . . . . . Kick . | . . . . . . . . . . . . . . . Crush 1 | . . . . . . . . 1 . . . . . . Escape Stasis 29 | . . . . . . 5 . . . . 24 . . . Rewire 10 | . . . . . 4 . . 6 . . . . . . Trap . | . . . . . . . . . . . . . . . Miscellaneous . | . . . . . . . . . . . . . . . Route ------- -11/Scrapyard -10/Materials -10/Mines -9/Materials -8/Materials (discovered 2 exits: [*Fac x2]) -7/Factory (discovered 2 exits: [*Fac] / [*Low]) -6/Factory -6/Lower Caves -6/Lower Caves (discovered 2 exits: *Fac / *Dat) -6/Data Miner -5/Proximity Caves -5/Factory (discovered 2 exits: Fac / *Upp) -5/Upper Caves -5/Upper Caves -5/Warlord History --------- Turn | Location | Event 5 | -11/Scrapyard | Discovered new exit (range 14) 1185 | -11/Scrapyard | Assembled infested the area 2168 | -11/Scrapyard | Entered Materials 2169 | -10/Materials | Build established: Mutant 2462 | -10/Materials | Lost 3 parts (1p1n1w) 2464 | -10/Materials | Discovered new exit (range 7) 2475 | -10/Materials | Entered Mines 2508 | -10/Mines | Found DCF Scrap (17 items) 2579 | -10/Mines | A weapon hastily lodged in a ceiling crevice suddenly fell to the ground 2622 | -10/Mines | Met a Derelict bent on vengeance 2824 | -10/Mines | Core integrity fell below 50% 2852 | -10/Mines | Build established: Derelict-Mutant 2868 | -10/Mines | Discovered new exit (range 9) 2885 | -10/Mines | Entered Materials 2885 | -9/Materials | Evolved 2 slots: Propulsion x2 3301 | -9/Materials | Lost 3 parts (1p1n1w) 3562 | -9/Materials | Build established: Scavenger-Mutant 3649 | -9/Materials | Discovered new exit (range 3) 3656 | -9/Materials | Entered another Materials area 3656 | -8/Materials | Evolved 2 slots: Weapon x2 3963 | -8/Materials | Discovered new exit (range 16) 3980 | -8/Materials | Build established: Scavenger-Skirmisher 4285 | -8/Materials | Discovered new exit (range 5) 4292 | -8/Materials | Entered Factory 4292 | -7/Factory | Evolved 2 slots: Utility x2 4512 | -7/Factory | Discovered new exit (range 4) 4724 | -7/Factory | Build established: Gunner 5049 | -7/Factory | Found Prototype Device 5414 | -7/Factory | Discovered new exit (range 11) 5451 | -7/Factory | Entered another Factory area 5451 | -6/Factory | Evolved 2 slots: Utility x2 5453 | -6/Factory | Identified Active Sensor Suite 5753 | -6/Factory | Build established: Assassin 6337 | -6/Factory | Discovered new exit (range 15) 6401 | -6/Factory | Identified exit to Lower Caves 6403 | -6/Factory | Entered Lower Caves 6980 | -6/Lower Caves | Discovered new exit (range 15) 8892 | -6/Lower Caves | Identified exit to Lower Caves 9360 | -6/Lower Caves | Attracted the attention of an 0b10 checkpoint 9540 | -6/Lower Caves | Spotted B-75 Beast 9709 | -6/Lower Caves | Lost 11 parts (1p2n2u6w) 10010 | -6/Lower Caves | Destroyed B-75 Beast 10304 | -6/Lower Caves | Build established: Mutant 10714 | -6/Lower Caves | Build established: Derelict-Skirmisher 10782 | -6/Lower Caves | Entered another Lower Caves area 10817 | -6/Lower Caves | Discovered new exit (range 7) 10831 | -6/Lower Caves | Identified exit to Factory 11213 | -6/Lower Caves | Entered an active Warlord outpost 11220 | -6/Lower Caves | A Commander dispatched an escort 11244 | -6/Lower Caves | Build established: Derelict-Assassin 11250 | -6/Lower Caves | Learned location of Armory (-4) 11250 | -6/Lower Caves | Learned Research trap positions 11443 | -6/Lower Caves | Attracted the attention of an 0b10 outpost 11471 | -6/Lower Caves | Destroyed 7 combat bots 11741 | -6/Lower Caves | Learned 4 Factory zone layouts 11813 | -6/Lower Caves | Discovered new exit (range 10) 11837 | -6/Lower Caves | Identified exit to Data Miner 12162 | -6/Lower Caves | Build established: Scavenger-Assassin 12677 | -6/Lower Caves | Entered Data Miner 12677 | -6/Data Miner | Accompanied by 4 allies 12677 | -6/Data Miner | Discovered new exit (range 6) 12678 | -6/Data Miner | Commander's escort returned to base 12678 | -6/Data Miner | Commander's escort returned to base 12723 | -6/Data Miner | Met Data Miner 12783 | -6/Data Miner | Learned location of Section 7 (-2) 12783 | -6/Data Miner | Acquired the access code to Warlord's prototype stash 12831 | -6/Data Miner | Received God Mode back door access code from Data Miner 12898 | -6/Data Miner | Identified exit to Proximity Caves 12901 | -6/Data Miner | Entered Proximity Caves 12901 | -5/Proximity Caves | Accompanied by 2 allies 12903 | -5/Proximity Caves | Attracted the attention of an 0b10 checkpoint 14078 | -5/Proximity Caves | Lost 5 parts (1n1u3w) 14086 | -5/Proximity Caves | Discovered exit to Factory (range 5) 14149 | -5/Proximity Caves | Entered Factory 14149 | -5/Factory | Accompanied by 1 ally 14149 | -5/Factory | Evolved 2 slots: Utility x2 14150 | -5/Factory | Identified exit to Factory 14357 | -5/Factory | Discovered new exit (range 15) 14430 | -5/Factory | Identified exit to Upper Caves 14911 | -5/Factory | Incoming investigation squad redirected 15388 | -5/Factory | Entered Upper Caves 15626 | -5/Upper Caves | Learned 4 Factory zone layouts 16209 | -5/Upper Caves | Discovered new exit (range 15) 16243 | -5/Upper Caves | Identified exit to Upper Caves 16315 | -5/Upper Caves | Learned Factory terminal intel 16567 | -5/Upper Caves | Entered another Upper Caves area 16707 | -5/Upper Caves | Learned 4 Factory zone layouts 17437 | -5/Upper Caves | Discovered new exit (range 13) 17471 | -5/Upper Caves | Identified exit to Warlord 17529 | -5/Upper Caves | System corruption reached 10% 17704 | -5/Upper Caves | Entered Warlord 17815 | -5/Warlord | System corruption cleaned by Quarantine Array 18240 | -5/Warlord | Opened Warlord's prototype stash 18254 | -5/Warlord | Found Prototype Reactor 18326 | -5/Warlord | Found Prototype Processor 18326 | -5/Warlord | Identified Exp. Armor Integrity Analyzer 18461 | -5/Warlord | Received a Watcher feed algorithm from an ecstatic Tinkerer 18463 | -5/Warlord | Ran a Watcher feed algorithm 18566 | -5/Warlord | Met Warlord 18591 | -5/Warlord | Warlord's base attacked by MAIN.C 18941 | -5/Warlord | Warlord forces counterattacked 18976 | -5/Warlord | Found Prototype Launcher 18976 | -5/Warlord | Identified Vortex Catalyst Activator 19231 | -5/Warlord | Spotted Striker 19266 | -5/Warlord | Warlord base infiltrated, sounded retreat 19282 | -5/Warlord | Lost 3 allies 19546 | -5/Warlord | Spotted Executioner 19593 | -5/Warlord | Destroyed Executioner 19739 | -5/Warlord | Spotted Executioner 19741 | -5/Warlord | Destroyed Executioner 19818 | -5/Warlord | Spotted B-86 Titan 19848 | -5/Warlord | Released all parts (10) 19853 | -5/Warlord | Core integrity fell below 50% 19861 | -5/Warlord | Spotted Striker 19863 | -5/Warlord | Core integrity fell below 20% 19872 | -5/Warlord | Destroyed by B-86 Titan with Hardcell Cannon Last Messages --------------- 19848_ Dropped Vortex Catalyst Activator. 19848_ Released Imp. Hardlight Generator. 19848_ Released Enh. Biometal Leg. 19848_ Released Lrg. Storage Unit. 19848_ Released Active Sensor Suite. 19848_ Released Adv. Power Amplifier. 19848_ Released Lrn. Proton Cannon. 19848_ Released Neutron Cannon. 19848_ Released Drone Bay. 19848_ Released Neutron Cannon. 19848_ Acquired Vortex Catalyst Activator. 19849_ Vortex Catalyst Activator destroyed. 19849_ Knocked back. 19849_ Penetrated by Slug. 19855_ The unstable cave ceiling collapses. 19863_ System corrupted: Energy discharge (-38). 19863_ The unstable cave ceiling collapses. 19866_ Knocked back. 19870_ The unstable cave ceiling collapses. 19871_ Acquired 2 matter. Map ----- +----------------------------------------------------+ | # + ^ ### | | # + ^+ | | # """" + + | | # """" + ^ #### | | # """" # # "" """"""""""""#??# | | # """" # # "" """"""""""""#??? | | + # # "" "############??? | | # %* #### #######""#####?????????????# | | # %"""" #?????#""#????????????????## | | ###### %"""" #?????#""#????????????????# | | """ #??????""????????????????## | | " = #????????????????????????# | | ! = ####????????????????????????# | | %! ##??????????????????????????# | | ##+###### [ #??????????????????????????# | | ## #?????????????????????????## | | % ## % #????????????????????????## | | ## #????????????????????????# | | """" #? ##???????????????????##### ## | | """" #? #??????????????????## # ### | | """" #? ; #####??????????????# #? | | """" #?# ; #??????????????# ## | | ### #??????????????# ## # | | "####### # #??????????????###### # | | ##???????????????### ## | | """"] d @##??????????????# ## | | " #%##????????????## # | | !!! ;;; ## ##???????????# # | | ]!= ; d ### ##??????????# | | % ! ] #### ####????????# % | | ##"# * # b ###??###?## = | | ???## # i #;;#%#### ### " | | ?#### # # #; #"""""""""" # | | ## ^^ ! Kx % ## | | ^ | ##? | | ########## #"# ;"#"""""""##?? | | ????????### % #### ### ##??? | | ??????????### # # #### #?# ## ########???? | | ????????????## # ########????##?###?# #?????????? | | ?????????????#?###????????????????????##?????????? | | ?????????????????????????????????????????????????? | | | | | | | | | | | | | | | | | | | +----------------------------------------------------+ Best States ------------- Heat Dissipation 59 Coolant Potential 65 Energy Generation 23 Energy Capacity 315 Matter Stores 300 Matter Capacity 300 Sight Range 16 Robot Scan Range 20 Terrain Scan Range 16 Terrain Scan Density 10 Power Amplification 30 Armor Coverage 600 Resistance: TH 10 Propulsion Shielding 33 Evasion (%) 55 Recoil Reduction 3 Particle Charging 15 Item Schematics ----------------- Combat Drone Bay | -6/Data Miner | Free Prc. Matter Filter | -6/Data Miner | Free Centrium Wheel | -6/Data Miner | Free Lgt. Regenerative Plating | -6/Data Miner | Free Adv. Reaction Control System | -6/Data Miner | Free Cld. Gravmag System | -6/Data Miner | Free Neutron Cannon | -6/Data Miner | Free Matter Neutralizer | -6/Data Miner | Free Adv. Particle Charger | -6/Data Miner | Free Railgun | -6/Data Miner | Free Adv. System Restoration Module | -6/Data Miner | Free Nova Cannon | -6/Data Miner | Free Robot Schematics ------------------ D-63 Destroyer | -6/Data Miner | Free B-48 Gladiator | -6/Data Miner | Free E-15 Imp | -6/Data Miner | Free M-22 Extractor | -6/Data Miner | Free B-60 Warrior | -6/Data Miner | Free I-47 Archangel | -6/Data Miner | Free Fabricated ------------ Nothing Repaired ---------- Nothing Studied --------- None Alien Tech Used ----------------- None Achievements -------------- All Kinds Of Bad News Reappropriation Challenges ------------ None Game ------ Seed TeleporterSurveybotFrame Manual? 0 Play Time 01:33:09 Cumulative 214.0 hours Start 2026.06.26 @ 17:28:26 End 2026.06.26 @ 21:08:23 Sessions 1 Manual Loads 0 Difficulty Rogue Special Mode None Game No. 357 Rogue 357 Adventurer 0 Explorer 0 Win Type - Total 2 Types 2/0/0/0/0/0/0/0/0/0 Lore% 63 Gallery% 61 Achievement% 47 Wizard Run 0 Options --------- Layout 2 ASCII 0 Keyboard 1 Movement Numpad Keybinds 0 Fullscreen 1 Font 20/SmallcapsGlow Map View 64x51 Zoom Use 0% Tactical HUD 1 Map Filters NONE Filters NONE Steam 1 RUN: 16350b70-fd54-4ed7-a4c7-676b3bd77efe